bitfinex-derivatives/quotes_ETHF0:USTF0_20250804
["timestamp","ask_amount","ask_price","bid_price","bid_amount"]
[1754340640441,0.5228,3697.7,3697.6,2.27464]
[1754340640642,1.515,3698.1,3698.0,1.4075]
[1754340640842,20.352,3698.1,3698.0,1.4075]
[1754340641746,20.352,3698.1,3698.0,1.0527]
[1754340642048,20.6463,3698.1,3698.0,0.7718]
[1754340642343,20.6463,3698.1,3698.0,0.55]
[1754340644445,1.8093,3698.1,3698.0,0.55]
[1754340644647,20.6423,3698.1,3698.0,0.55]
[1754340644840,20.6413,3698.1,3698.0,0.55]
[1754340645346,1.0374,3698.0,3697.9,0.54088]
[1754340645645,1.8026,3698.0,3697.9,0.54088]
[1754340645944,1.8026,3698.0,3697.9,1.09088]
[1754340647140,20.6326,3698.0,3697.9,0.54088]
[1754340647545,1.8026,3698.0,3697.9,0.54088]
[1754340647748,20.6316,3698.0,3697.9,0.54088]
[1754340648448,20.6316,3698.0,3697.9,0.76908]
[1754340648744,20.6316,3698.0,3697.9,1.66738]
[1754340648944,20.6316,3698.0,3697.9,1.94828]
[1754340649143,21.17248,3698.0,3697.9,1.94828]
[1754340649344,2.34348,3698.0,3697.9,1.94828]
[1754340649544,21.17048,3698.0,3697.9,1.94828]
[1754340649744,21.17048,3698.0,3697.9,1.4074]
[1754340649945,21.17048,3698.0,3697.9,1.0527]
[1754340650145,21.17048,3698.0,3697.9,0.55]
[1754340650343,2.34348,3698.0,3697.9,0.7718]
[1754340650539,21.17048,3698.0,3697.9,0.7718]
[1754340650948,21.17048,3698.0,3697.9,1.1265]
[1754340651749,21.17048,3698.0,3697.9,1.4074]
[1754340652250,20.6296,3698.0,3697.9,1.4074]
[1754340652449,20.342,3698.0,3697.9,1.7336]
[1754340654053,20.6296,3698.0,3697.9,1.4074]
[1754340654451,20.6296,3698.0,3697.9,1.7336]
[1754340655055,20.6296,3698.0,3697.9,1.4074]
[1754340659957,20.342,3698.0,3697.9,1.4074]
[1754340660858,20.342,3698.0,3697.9,1.7214]
[1754340661159,0.5451,3699.1,3699.0,1.26062]
[1754340661458,20.81955474,3699.3,3699.2,1.2606]
[1754340661660,2.00355474,3699.3,3699.2,1.0339]
[1754340661853,0.70105474,3699.3,3699.2,1.7029]
[1754340662057,18.816,3699.4,3699.3,0.54069]
[1754340662258,19.51670863,3699.4,3699.3,2.24359]
[1754340662660,19.84900863,3699.4,3699.3,2.24359]
[1754340663059,1.03300863,3699.4,3699.3,2.24359]
[1754340663264,2.05597,3699.4,3698.9,0.3541]
[1754340663459,1.7978,3699.1,3699.0,1.06843]
[1754340663660,1.7978,3699.1,3699.0,1.57553]
[1754340663964,2.05602,3699.1,3699.0,2.24363]
[1754340664660,2.33852,3699.1,3699.0,1.3889]
[1754340664870,2.33852,3699.1,3699.0,1.0348]
[1754340665057,1.7978,3699.1,3699.0,1.3889]
[1754340665864,1.7978,3699.1,3699.0,1.7029]
[1754340666060,3.4903,3699.8,3699.4,1.3889]
[1754340666268,0.70017467,3699.7,3699.6,1.7029]
[1754340666556,1.70017467,3700.0,3699.9,0.7199]
[1754340666757,19.809,3700.0,3699.9,0.7199]
[1754340666961,22.84756467,3700.0,3699.9,1.0348]
[1754340667163,22.84756467,3700.0,3699.9,0.5277]
[1754340667466,1.7978,3699.5,3699.4,1.3889]
[1754340667763,2.49797467,3699.5,3699.4,1.3889]
[1754340667960,18.806,3699.7,3699.5,0.85556]
[1754340668164,18.805,3699.8,3699.7,1.26053]
[1754340668466,0.69972488,3699.8,3699.7,2.24353]
[1754340668660,0.3323,3699.8,3699.7,1.26053]
[1754340669164,1.3025,3699.8,3699.7,0.7199]
[1754340669357,1.7978,3699.8,3699.7,0.5277]
[1754340669562,1.7978,3699.5,3699.4,1.92957]
[1754340669764,0.54061,3699.9,3699.6,0.54064]
[1754340669971,2.75550989,3699.9,3699.8,1.3889]
[1754340670668,2.21489989,3699.9,3699.8,1.3889]
[1754340670868,2.21489989,3699.9,3699.8,1.7029]
[1754340671775,2.49739989,3699.9,3699.8,1.3889]
[1754340672265,0.69959989,3699.9,3699.5,0.3149]
[1754340672470,0.846,3699.6,3699.5,0.2163]
[1754340672666,1.05433,3699.7,3699.6,2.24354]
[1754340673065,1.84313,3699.7,3699.6,2.24354]
[1754340673264,1.84313,3699.7,3699.6,1.7029]
[1754340673470,0.54068,3699.4,3699.3,0.75348]
[1754340673665,2.33848,3699.4,3699.3,1.28468]
[1754340673875,1.5153,3699.4,3699.3,0.744]
[1754340674077,1.7978,3699.0,3698.9,0.7199]
[1754340674375,1.5153,3699.0,3698.9,1.388]
[1754340674564,1.5153,3699.0,3698.9,1.7029]
[1754340674769,1.7978,3699.0,3698.9,0.744]
[1754340674970,2.33853,3699.0,3698.9,0.744]
[1754340675572,1.38667,3699.5,3699.4,0.7199]
[1754340675775,1.05437,3699.5,3699.4,1.7029]
[1754340676076,0.54065,3699.6,3699.5,2.24356]
[1754340676575,0.5137,3699.7,3699.6,1.26054]
[1754340676768,0.5137,3699.7,3699.6,1.7029]
[1754340676973,0.5137,3699.7,3699.2,0.85559]
[1754340676974,1.009,3699.7,3699.2,0.85559]
[1754340677272,1.5153,3699.3,3699.2,1.61469]
[1754340677675,1.5153,3699.3,3699.2,1.92959]
[1754340678369,1.05432,3699.8,3699.7,0.7199]
[1754340678566,1.05432,3699.8,3699.7,1.3889]
[1754340678765,1.0,3700.0,3699.9,1.7029]
[1754340680270,0.6623,3700.0,3699.9,1.7029]
[1754340681173,20.84776,3700.9,3700.8,0.6162]
[1754340681374,20.84776,3700.9,3700.8,0.9703]
[1754340681576,20.39126,3700.9,3700.8,0.9703]
[1754340681872,21.15426,3700.9,3700.8,0.8612]
[1754340682175,2.36226,3700.9,3700.8,1.3525]
[1754340682571,2.36226,3700.9,3700.8,0.2163]
[1754340682875,1.267,3700.6,3700.5,0.8612]
[1754340683266,1.9058,3700.6,3700.5,0.8612]
[1754340683471,2.3623,3700.6,3700.5,0.8612]
[1754340683875,1.8218,3700.6,3700.5,0.8612]
[1754340684175,1.8218,3700.6,3700.5,1.3525]
[1754340685172,1.44420083,3702.7,3700.7,0.7509]
[1754340685375,0.69488884,3702.6,3702.5,0.85422]
[1754340685570,0.9650721,3702.9,3702.3,3.2078]
[1754340685872,0.9650721,3702.9,3702.6,0.5402]
[1754340686072,0.3042,3702.7,3702.6,0.5402]
[1754340686675,0.3042,3702.7,3702.6,1.2951]
[1754340687579,1.0655,3702.7,3702.6,0.9602]
[1754340687881,1.0655,3702.8,3702.3,3.6278]
[1754340688179,1.0655,3702.8,3702.7,3.2078]
[1754340688573,1.0,3703.0,3702.8,0.54018]
[1754340688875,1.0,3703.0,3702.9,0.7549]
[1754340688876,1.3042,3703.0,3702.9,0.7549]
[1754340689274,0.54016,3702.9,3702.7,3.2078]
[1754340689476,1.0655,3702.8,3702.7,3.2078]
[1754340690181,1.0655,3702.8,3702.7,3.9627]
[1754340690384,1.0655,3702.8,3702.7,4.50289]
[1754340690780,1.0655,3702.8,3702.7,3.9627]
[1754340690983,1.0655,3702.8,3702.0,1.35073]
[1754340690984,0.7484,3702.6,3702.5,0.54022]
[1754340691284,1.0655,3702.6,3702.5,0.54022]
[1754340691583,1.0655,3702.3,3702.2,3.2078]
[1754340692078,0.54028,3702.1,3701.8,0.54031]
[1754340692279,0.3042,3702.7,3701.7,3.2078]
[1754340692477,0.54026,3702.3,3702.0,0.54029]
[1754340692679,0.54028,3702.1,3701.7,3.2078]
[1754340692884,0.54027,3702.2,3702.0,0.54029]
[1754340693487,1.0655,3702.1,3702.0,0.54029]
[1754340693681,1.0655,3701.9,3701.8,0.54031]
[1754340693884,1.60582,3701.8,3701.7,3.2078]
[1754340694089,1.0655,3701.8,3701.7,3.2078]
[1754340694383,1.0655,3701.8,3701.6,0.54034]
[1754340694681,1.0655,3701.5,3701.3,3.74819]
[1754340694884,1.0655,3701.5,3701.0,0.42]
[1754340694885,0.5404,3701.3,3701.0,0.54043]
[1754340695080,0.5404,3701.3,3700.8,3.2078]
[1754340695081,1.0655,3701.0,3700.8,3.2078]
[1754340695286,1.0655,3700.9,3700.8,3.2078]
[1754340695586,0.3042,3700.9,3700.8,3.9627]
[1754340696382,0.6213,3701.4,3701.2,0.3349]
[1754340696585,0.4442,3701.8,3701.6,1.29525]
[1754340696788,0.6213,3701.7,3701.6,0.7549]
[1754340696983,1.0655,3701.7,3701.6,0.7549]
[1754340697191,21.9828,3702.0,3701.8,0.54031]
[1754340697383,1.60581,3701.9,3701.2,1.351]
[1754340697585,1.60584,3701.7,3701.5,3.74816]
[1754340697886,0.54037,3701.5,3701.3,0.54038]
[1754340698086,0.54038,3701.5,3701.0,3.2078]
[1754340698385,18.775,3702.0,3701.2,0.5404]
[1754340698587,1.0655,3701.9,3701.2,0.5404]
[1754340698786,0.54039,3701.4,3701.2,0.5404]
[1754340698979,1.0655,3701.2,3701.1,0.54042]
[1754340699189,1.0655,3701.1,3701.0,3.74824]
[1754340699684,1.60592,3701.1,3701.0,3.2078]
[1754340699878,1.35096,3701.4,3700.6,0.42]
[1754340699879,1.35096,3701.4,3700.6,3.6278]
[1754340700079,1.0655,3701.5,3700.7,1.35122]
[1754340700288,0.3171,3701.4,3700.7,1.35122]
[1754340700488,3.2078,3701.7,3700.7,1.35122]
[1754340700683,1.0655,3701.0,3700.9,0.54045]
[1754340700888,0.4442,3701.0,3700.9,0.96045]
[1754340701283,0.98464,3701.0,3700.9,0.54045]
[1754340701485,1.60595,3701.0,3700.7,0.54047]
[1754340701788,1.0655,3700.8,3700.7,0.54047]
[1754340701988,1.0655,3700.8,3700.7,0.96047]
[1754340702989,1.0655,3700.8,3700.7,0.54047]
[1754340705389,1.7751,3700.8,3700.7,1.02747]
[1754340705588,1.7751,3700.8,3700.7,1.44747]
[1754340706084,1.7751,3700.8,3700.7,1.78237]
[1754340706688,1.3309,3700.8,3700.7,1.78237]
[1754340708591,1.0138,3701.2,3701.1,1.78233]
[1754340709492,1.7751,3701.2,3701.1,1.78233]
[1754340709692,1.7751,3701.2,3701.1,1.44743]
[1754340710194,1.7751,3701.2,3701.1,1.78233]
[1754340710195,1.3309,3701.2,3701.1,1.78233]
[1754340710590,0.6213,3701.1,3701.0,3.74823]
[1754340710796,1.7751,3701.1,3701.0,4.99013]
[1754340711199,1.7751,3701.3,3701.2,0.907]
[1754340711600,0.4129,3701.3,3701.2,1.02741]
[1754340711799,0.7171,3701.3,3701.2,1.02741]
[1754340712001,0.7171,3701.3,3701.2,1.12571]
[1754340712200,0.7171,3701.3,3701.2,1.88061]
[1754340712603,1.7751,3701.3,3701.2,0.907]
[1754340713103,1.7751,3701.3,3701.2,0.487]
[1754340714202,1.7751,3701.3,3701.2,1.3402]
[1754340714407,0.5113,3701.3,3701.2,1.3402]
[1754340715704,1.3522,3701.3,3701.2,1.3402]
[1754340716007,1.7741,3701.3,3701.2,1.3402]
[1754340716208,2.37401,3701.2,3701.1,0.76072]
[1754340716605,1.8336,3701.2,3701.1,0.76072]
[1754340716799,1.8336,3701.2,3701.1,1.49882]
[1754340717006,1.8336,3701.2,3701.1,1.82952]
[1754340717613,1.8336,3701.2,3701.1,1.88802]
[1754340718215,1.8336,3701.2,3701.1,1.92462]
[1754340718716,1.0733,3701.2,3701.1,1.92462]
[1754340720310,1.61366,3701.6,3701.5,0.5208]
[1754340720510,1.35087,3701.7,3701.0,3.9761]
[1754340720816,1.8336,3701.1,3701.0,3.7286]
[1754340721015,1.8336,3701.1,3701.0,3.2078]
[1754340721807,1.8336,3701.1,3700.9,0.54045]
[1754340721808,0.54048,3700.7,3700.6,3.2078]
[1754340722019,1.8336,3700.4,3700.3,0.54054]
[1754340723811,1.35103,3701.3,3699.6,3.2078]
[1754340723812,1.8336,3699.7,3699.6,3.2078]
[1754340724014,1.8336,3699.2,3699.1,0.54072]
[1754340724219,1.8336,3699.2,3699.1,3.74852]
[1754340724413,1.8336,3699.2,3699.1,3.2078]
[1754340725516,2.3743,3699.2,3699.1,3.2078]
[1754340725823,1.8336,3699.2,3699.1,3.2078]
[1754340726519,1.8336,3699.2,3699.1,3.4281]
[1754340727321,1.8336,3699.2,3699.1,3.2078]
[1754340728611,1.8336,3699.2,3699.1,4.592]
[1754340729914,1.8336,3699.6,3699.5,0.2203]
[1754340730119,0.7928,3699.6,3699.5,5.13266]
[1754340730420,1.8336,3699.9,3699.7,0.54062]
[1754340730622,0.54059,3700.0,3699.7,0.54062]
[1754340730623,1.8336,3699.8,3699.7,0.54062]
[1754340731012,1.8336,3699.8,3699.7,1.49902]
[1754340731219,1.8336,3699.8,3699.7,1.82972]
[1754340731719,1.0727,3699.6,3699.5,3.2078]
[1754340732022,0.339,3699.6,3699.5,4.592]
[1754340732319,0.3384,3699.9,3699.5,4.592]
[1754340732320,1.4946,3699.9,3699.8,1.2891]
[1754340732520,1.4946,3699.9,3699.8,1.88821]
[1754340732721,1.8336,3699.9,3699.8,1.88821]
[1754340732923,1.8336,3699.9,3699.8,1.3476]
[1754340733117,1.8336,3699.9,3699.8,0.5208]
[1754340734217,0.5117,3699.9,3699.8,0.5208]
[1754340734417,2.37418,3700.1,3700.0,1.2891]
[1754340734617,1.8336,3700.1,3700.0,1.3476]
[1754340734822,1.8336,3700.1,3700.0,1.3842]
[1754340735818,1.8336,3700.1,3700.0,1.3476]
[1754340736123,0.339,3700.2,3700.1,1.40397]
[1754340736424,0.339,3700.2,3700.1,1.92477]
[1754340736623,1.4117,3700.2,3700.1,1.92477]
[1754340736820,1.4117,3700.0,3699.9,3.2078]
[1754340737020,1.1562,3699.6,3699.5,3.2078]
[1754340737219,2.37424,3699.6,3699.5,3.2078]
[1754340739124,0.7343,3699.4,3699.3,0.54068]
[1754340739324,1.8336,3699.4,3699.3,0.2203]
[1754340739918,1.4117,3699.9,3699.8,0.76091]
[1754340740125,1.47418,3700.1,3700.0,0.5208]
[1754340740322,1.1562,3700.1,3700.0,1.2891]
[1754340740525,0.7343,3700.4,3700.3,0.91]
[1754340740725,1.21789,3700.7,3700.6,0.5793]
[1754340740924,1.21789,3700.7,3700.6,1.3842]
[1754340741227,1.21789,3700.7,3700.6,1.9247]
[1754340741228,1.1312,3700.7,3700.6,1.9247]
[1754340741428,1.05214,3701.0,3700.9,1.3476]
[1754340741726,0.5117,3701.1,3701.0,1.3842]
[1754340741927,1.4117,3701.1,3701.0,1.3842]
[1754340743022,0.339,3701.2,3701.1,0.63552]
[1754340743226,1.1312,3701.2,3701.1,1.15632]
[1754340743421,1.8336,3701.2,3701.1,1.15632]
[1754340743622,1.8336,3701.2,3701.1,1.88802]
[1754340743824,1.8336,3701.2,3701.1,0.5208]
[1754340744022,1.8336,3701.2,3701.1,0.9584]
[1754340744329,1.8336,3701.2,3701.1,1.2891]
[1754340745029,1.8336,3701.2,3701.1,1.3476]
[1754340745326,1.272,3701.6,3701.5,1.3476]
[1754340745525,0.339,3701.6,3701.5,1.3842]
[1754340746425,1.831,3701.6,3701.5,1.3476]
[1754340746627,1.831,3701.6,3701.5,1.88797]
[1754340746824,1.27047,3701.5,3701.4,0.54037]
[1754340747020,2.34897,3701.5,3701.3,3.2078]
[1754340747221,1.3093,3701.4,3701.3,3.2078]
[1754340747428,1.27054,3701.0,3700.9,3.2078]
[1754340747629,2.34904,3701.0,3700.9,3.2078]
[1754340747824,0.54054,3700.4,3700.2,3.74835]
[1754340748032,0.54056,3700.2,3700.0,0.54058]
[1754340748336,1.0785,3700.1,3700.0,0.96718]
[1754340748631,1.0785,3700.1,3700.0,1.31908]
[1754340748824,0.6521,3700.1,3700.0,1.31908]
[1754340750133,4.55894,3700.9,3699.9,3.2078]
[1754340750134,1.61908,3700.0,3699.9,3.2078]
[1754340750428,0.6521,3700.4,3700.3,0.7785]
[1754340750827,1.0785,3700.4,3700.3,0.7785]
[1754340751533,1.61903,3700.4,3700.3,0.4266]
[1754340751733,0.54056,3700.2,3700.1,0.54056]
[1754340752136,1.0785,3700.2,3700.1,0.96716]
[1754340752435,1.0785,3700.2,3700.1,0.4266]
[1754340752631,1.0785,3700.2,3699.9,3.74839]
[1754340752632,0.54057,3700.1,3699.9,3.74839]
[1754340752826,0.7472,3700.0,3699.9,3.2078]
[1754340753134,0.54066,3699.5,3699.4,3.2078]
[1754340753429,1.61916,3699.5,3699.4,3.2078]
[1754340754224,1.61919,3699.4,3699.2,0.54069]
[1754340754436,1.0785,3699.3,3699.2,0.54069]
[1754340754630,1.0785,3700.0,3699.2,0.7785]
[1754340754831,0.3208,3699.6,3699.5,1.31916]
[1754340755132,0.86142,3699.8,3699.7,0.7785]
[1754340755329,1.19272,3699.8,3699.7,0.7785]
[1754340755531,2.34922,3699.8,3699.7,1.3055]
[1754340756236,2.34922,3699.8,3699.7,1.2812]
[1754340756430,1.8086,3699.8,3699.7,1.2812]
[1754340756634,0.7663,3700.0,3699.9,1.8851]
[1754340756924,0.3313,3700.3,3700.2,1.10656]
[1754340757134,0.54053,3700.4,3700.2,1.88506]
[1754340757326,0.54053,3700.4,3700.3,1.3445]
[1754340757635,0.3208,3700.4,3700.3,1.3445]
[1754340757938,0.3208,3700.4,3700.3,0.7785]
[1754340758633,0.86131,3700.6,3700.5,0.5405]
[1754340758835,1.61901,3700.6,3700.5,1.2947]
[1754340759137,1.0785,3700.6,3700.5,1.2947]
[1754340759437,0.3208,3700.6,3700.5,1.319]
[1754340760131,1.0785,3700.6,3700.5,0.7542]
[1754340760434,1.8086,3700.6,3700.5,1.2812]
[1754340761238,1.8086,3700.6,3700.5,1.3202]
[1754340762338,0.7301,3700.4,3700.3,0.54053]
[1754340762635,1.8086,3700.4,3700.3,0.54053]
[1754340762836,2.34914,3700.3,3700.2,3.96695]
[1754340763034,2.34914,3700.3,3700.2,4.27535]
[1754340763231,1.8086,3700.3,3700.2,4.70195]
[1754340763540,1.8086,3700.3,3700.2,5.09285]
[1754340763735,0.54049,3700.7,3700.6,0.5405]
[1754340764036,0.7663,3700.7,3700.6,1.885]
[1754340764234,0.5516,3700.7,3700.6,1.885]
[1754340764634,0.4264,3700.9,3700.8,0.84887]
[1754340764827,0.3208,3700.9,3700.8,1.13077]
[1754340765236,0.3313,3701.0,3700.8,1.13077]
[1754340765436,1.03975,3701.0,3700.9,1.3445]
[1754340765630,1.3822,3701.0,3700.9,1.3202]
[1754340765834,1.8086,3701.0,3700.9,1.3202]
[1754340766435,0.5516,3701.0,3700.9,1.3445]
[1754340766638,1.3822,3701.0,3700.9,1.3445]
[1754340766837,1.8086,3701.0,3700.9,1.3202]
[1754340768540,1.8086,3701.0,3700.9,0.9536]
[1754340768841,1.8086,3701.0,3700.9,1.2812]
[1754340769435,1.8086,3701.0,3700.9,0.735]
[1754340769638,1.8086,3700.9,3700.8,0.54047]
[1754340769937,1.8086,3700.9,3700.8,1.06747]
[1754340770138,1.8086,3700.9,3700.8,1.49407]
[1754340771037,1.8086,3700.9,3700.8,0.2186]
[1754340771238,0.7301,3700.7,3700.6,0.75909]
[1754340771432,0.54052,3700.5,3700.3,0.54054]
[1754340771632,1.8086,3700.4,3700.3,0.75914]
[1754340771837,1.8086,3700.4,3700.3,1.49414]
[1754340772040,1.8086,3700.4,3700.3,1.82174]
[1754340772441,1.8086,3700.4,3700.3,1.49414]
[1754340772743,1.8086,3700.3,3700.2,4.27536]
[1754340772943,1.8086,3700.3,3700.2,5.02956]
[1754340773145,1.8086,3700.3,3700.2,5.06856]
[1754340774443,1.8086,3700.3,3700.2,5.09286]
[1754340775139,1.8086,3700.3,3700.2,4.70196]
[1754340775346,1.8086,3700.3,3700.2,3.74836]
[1754340776445,1.8086,3700.3,3700.2,5.05546]
[1754340776641,1.8086,3700.3,3700.2,5.06776]
[1754340778544,1.8086,3700.3,3700.2,4.25426]
[1754340779944,1.8086,3700.3,3700.2,4.71016]
[1754340780146,1.8086,3700.3,3700.2,3.74836]
[1754340780346,1.8086,3700.3,3700.2,0.54056]
[1754340780749,1.3136,3699.9,3699.8,3.2078]
[1754340780950,1.8389,3699.9,3699.8,3.435]
[1754340781147,1.8389,3699.9,3699.8,3.7223]
[1754340781446,2.37954,3699.7,3699.6,0.54063]
[1754340781843,2.37955,3699.6,3699.5,0.54065]
[1754340782243,1.8389,3699.6,3699.5,0.54065]
[1754340783041,1.8389,3699.6,3699.5,0.76785]
[1754340783238,1.8389,3699.6,3699.5,1.05515]
[1754340783446,1.8389,3699.6,3699.5,1.85255]
[1754340784052,1.8389,3699.6,3699.5,1.86245]
[1754340784854,1.8389,3699.6,3699.5,1.85255]
[1754340785048,3.2078,3700.3,3700.2,0.54056]
[1754340785249,0.54042,3701.2,3701.1,0.6831]
[1754340785449,1.76182807,3701.2,3701.1,1.296]
[1754340785655,2.20312807,3701.2,3701.1,0.2272]
[1754340785852,1.5253,3700.9,3700.8,1.09326]
[1754340786059,1.66270807,3700.9,3700.8,1.09326]
[1754340786460,1.66270807,3700.9,3700.8,1.83646]
[1754340786858,1.5253,3700.9,3700.8,1.83646]
[1754340787154,2.37935,3700.9,3700.8,0.5528]
[1754340787456,1.8389,3700.8,3700.7,0.54047]
[1754340787856,1.8389,3700.8,3700.6,3.2078]
[1754340787857,2.37938,3700.7,3700.6,3.2078]
[1754340788259,2.37938,3700.7,3700.6,3.7606]
[1754340788453,1.5253,3700.7,3700.6,4.5197]
[1754340788656,1.084,3700.7,3700.6,4.5296]
[1754340788956,0.3136,3702.4,3702.1,0.54027]
[1754340789156,0.13729742,3702.3,3702.2,3.75796]
[1754340789354,0.12739742,3702.3,3702.2,3.75796]
[1754340790151,0.54157151,3702.9,3702.7,0.54019]
[1754340790359,0.54157151,3702.9,3702.8,3.2078]
[1754340790554,1.23988178,3702.9,3702.8,3.2078]
[1754340790952,1.01191027,3702.9,3702.8,3.2078]
[1754340791153,0.69831027,3702.9,3702.8,3.2078]
[1754340791360,1.69831027,3703.0,3702.9,0.54016]
[1754340791554,1.0,3703.0,3702.9,0.54016]
[1754340793962,1.3136,3703.0,3702.9,0.54016]
[1754340794861,1.6466,3703.0,3702.9,0.54016]
[1754340795962,1.3136,3703.0,3702.9,0.54016]
[1754340796462,1.0,3703.0,3702.9,0.54016]
[1754340798661,1.3136,3703.0,3702.9,0.54016]
[1754340799356,2.0879,3703.0,3702.9,0.54016]
[1754340799759,1.6466,3703.0,3702.9,0.54016]
[1754340800359,1.3136,3703.0,3702.9,0.54016]
[1754340800862,1.0879,3704.2,3703.7,0.54004]
[1754340801057,0.6466,3704.0,3703.9,3.2078]
[1754340801251,0.53986,3705.0,3704.7,0.53989]
[1754340801455,1.52161895,3705.6,3704.8,3.2078]
[1754340801456,1.0879,3704.9,3704.8,3.2078]
[1754340802061,0.3136,3705.3,3705.2,0.53983]
[1754340802261,0.17218895,3705.6,3705.5,0.53978]
[1754340802458,0.48578895,3705.6,3705.5,0.53978]
[1754340802664,0.81878895,3705.6,3705.5,0.53978]
[1754340802860,0.17218895,3705.6,3705.5,0.53978]
[1754340804163,1.0,3706.0,3705.9,0.53973]
[1754340804365,1.0,3706.0,3705.9,3.74753]
[1754340804861,0.13436793,3707.1,3706.8,0.53959]
[1754340805062,0.35124706,3708.0,3707.0,3.2078]
[1754340805256,0.3136,3708.2,3707.8,3.2078]
[1754340805459,0.8529,3708.8,3707.9,0.53943]
[1754340805662,1.0911,3708.8,3708.6,3.2078]
[1754340805960,0.54150862,3708.9,3708.7,0.0242]
[1754340806259,1.0,3709.0,3708.6,3.2078]
[1754340806464,1.0,3709.0,3708.9,0.0242]
[1754340806662,1.3246,3709.0,3708.7,0.0242]
[1754340806860,0.6481,3708.8,3708.6,3.2078]
[1754340807054,1.0911,3708.7,3708.6,3.2078]
[1754340807359,1.0911,3708.5,3708.2,3.2078]
[1754340807663,1.0911,3708.3,3708.2,3.2078]
[1754340809263,0.6481,3708.3,3708.2,3.2078]
[1754340809564,0.6481,3708.3,3708.2,3.232]
[1754340810061,0.3235,3708.3,3708.2,3.232]
[1754340810258,0.3235,3708.6,3708.3,0.58758]
[1754340810456,0.3235,3708.6,3708.3,0.56338]
[1754340810661,1.0,3709.0,3708.5,0.0242]
[1754340810857,0.6481,3708.8,3708.6,0.0242]
[1754340811063,1.0911,3708.7,3708.6,3.2078]
[1754340812062,1.0,3709.0,3708.2,3.2078]
[1754340812368,0.53938,3708.3,3708.2,3.2078]
[1754340812665,1.63048,3708.3,3708.2,3.2078]
[1754340813363,1.0911,3708.3,3708.2,3.2078]
[1754340813864,0.3235,3708.9,3708.2,3.232]
[1754340814065,0.3235,3708.9,3708.8,3.2078]
[1754340814261,1.0911,3708.9,3708.8,3.2078]
[1754340814654,0.6481,3708.9,3708.8,3.232]
[1754340815168,1.0911,3708.9,3708.8,3.2078]
[1754340815663,0.6481,3708.9,3708.8,3.232]
[1754340816057,0.3235,3708.9,3708.8,3.232]
[1754340816257,1.0,3709.0,3708.9,0.56349]
[1754340817157,1.0,3709.0,3708.9,0.58749]
[1754340817359,1.7665,3709.0,3708.9,0.53929]
[1754340817560,2.0911,3709.0,3708.9,0.53929]
[1754340818158,1.0,3709.0,3708.9,0.56349]
[1754340818359,2.0911,3709.0,3708.8,3.2078]
[1754340818564,2.0911,3709.0,3708.8,3.7471]
[1754340818565,1.0911,3708.9,3708.8,3.7471]
[1754340818965,0.6481,3708.9,3708.8,3.7713]
[1754340820567,1.0911,3708.9,3708.8,3.7471]
[1754340821068,0.6481,3708.9,3708.8,3.7713]
[1754340821561,0.6481,3708.9,3708.8,22.6273]
[1754340821866,0.3235,3708.9,3708.8,22.6273]
[1754340822362,1.0,3709.0,3708.8,22.6031]
[1754340822569,1.0,3709.0,3708.9,0.0242]
[1754340823064,1.3235,3709.0,3708.9,0.0242]
[1754340823866,1.0911,3708.9,3708.8,22.6031]
[1754340824062,1.0911,3708.9,3708.8,22.5851]
[1754340824368,1.0911,3708.9,3708.8,3.7471]
[1754340824562,1.0911,3708.9,3708.8,22.5821]
[1754340825467,0.3235,3708.9,3708.8,22.6063]
[1754340826068,1.0,3709.0,3708.9,0.0242]
[1754340826268,1.3235,3709.0,3708.9,0.0242]
[1754340826762,1.3235,3709.0,3708.8,22.5821]
[1754340826968,1.0911,3708.9,3708.8,3.7471]
[1754340827168,1.0911,3708.9,3708.8,22.5751]
[1754340827868,1.0911,3708.9,3708.8,3.7471]
[1754340828265,0.5446,3708.8,3707.2,3.2078]
[1754340828462,0.5423,3707.9,3707.1,0.3217]
[1754340828661,0.5423,3707.9,3707.0,18.839]
[1754340828662,0.53956,3707.1,3706.8,0.53959]
[1754340828864,0.3269,3707.0,3706.9,0.86127]
[1754340829064,0.3269,3707.0,3706.7,0.54989]
[1754340829263,0.3269,3707.0,3706.8,0.3217]
[1754340829264,0.3269,3706.9,3706.8,0.3217]
[1754340829666,0.3269,3706.9,3706.8,0.7744]
[1754340830265,0.3269,3706.9,3706.8,19.6504]
[1754340830859,0.3269,3706.9,3706.8,19.6494]
[1754340831267,0.3269,3706.9,3706.8,19.6454]
[1754340831568,0.5446,3706.9,3706.8,18.871]
[1754340831869,0.2177,3707.3,3707.2,0.53954]
[1754340832064,0.3246,3707.3,3707.2,1.66024]
[1754340832268,0.3246,3707.6,3707.5,0.53949]
[1754340832465,0.3246,3707.6,3707.5,1.66019]
[1754340833063,0.9650721,3708.3,3707.5,0.3463]
[1754340833274,0.9650721,3708.5,3708.4,0.53936]
[1754340833468,1.6568023,3708.5,3708.4,20.53506]
[1754340833664,2.2014023,3708.5,3708.4,19.42736]
[1754340833860,1.9837023,3708.5,3708.4,19.42736]
[1754340834064,1.0186302,3708.5,3708.4,19.74906]
[1754340834666,0.6917302,3708.5,3708.4,20.20176]
[1754340834871,0.6917302,3708.5,3708.4,20.54806]
[1754340835467,1.65642093,3708.5,3708.4,20.54806]
[1754340835671,1.07290093,3708.5,3708.4,20.54806]